[Event "Live Chess"]
[Site "Chess.com"]
[Date "2023.05.21"]
[Round "-"]
[White "HadesLearmonth"]
[Black "ranvir123"]
[Result "0-1"]
[WhiteElo "1184"]
[BlackElo "964"]
[TimeControl "300"]
[EndTime "3:44:03 PDT"]
[Termination "ranvir123 won by checkmate"]

1. e4 {[%clk 0:04:58.3]} 1... e5 {[%clk 0:04:59.4]} 2. Nf3 {[%clk 0:04:56.6]}
2... Nc6 {[%clk 0:04:59]} 3. Bb5 {[%clk 0:04:55.3]} 3... Nf6 {[%clk 0:04:56.2]}
4. Nc3 {[%clk 0:04:53.3]} 4... d6 {[%clk 0:04:55.2]} 5. O-O {[%clk 0:04:51.9]}
5... Bd7 {[%clk 0:04:53.7]} 6. d4 {[%clk 0:04:50.9]} 6... a6 {[%clk 0:04:52.4]}
7. Ba4 {[%clk 0:04:49.1]} 7... b5 {[%clk 0:04:50.6]} 8. Bb3 {[%clk 0:04:47.4]}
8... exd4 {[%clk 0:04:47.6]} 9. Nxd4 {[%clk 0:04:44.4]} 9... Nxd4 {[%clk
0:04:46.7]} 10. Qxd4 {[%clk 0:04:41.5]} 10... c5 {[%clk 0:04:43.8]} 11. Qe3
{[%clk 0:04:38]} 11... Qe7 {[%clk 0:04:36.2]} 12. a4 {[%clk 0:04:29.8]} 12... b4
{[%clk 0:04:29.8]} 13. Nd5 {[%clk 0:04:27.6]} 13... Nxd5 {[%clk 0:04:27.6]} 14.
Bxd5 {[%clk 0:04:25.4]} 14... Rb8 {[%clk 0:04:19.8]} 15. Re1 {[%clk 0:04:19.9]}
15... Be6 {[%clk 0:04:17.6]} 16. Bxe6 {[%clk 0:04:16.8]} 16... Qxe6 {[%clk
0:04:16.1]} 17. c3 {[%clk 0:04:10.4]} 17... bxc3 {[%clk 0:04:11.1]} 18. bxc3
{[%clk 0:04:10.3]} 18... Rb3 {[%clk 0:04:08.7]} 19. Bd2 {[%clk 0:04:01.5]} 19...
g6 {[%clk 0:04:03.3]} 20. Rab1 {[%clk 0:04:00.3]} 20... Bg7 {[%clk 0:03:59.4]}
21. Rxb3 {[%clk 0:03:50.6]} 21... Qxb3 {[%clk 0:03:58.6]} 22. Qh3 {[%clk
0:03:38.2]} 22... Qxa4 {[%clk 0:03:50.1]} 23. Rb1 {[%clk 0:03:35.5]} 23... O-O
{[%clk 0:03:47]} 24. Bh6 {[%clk 0:03:26.4]} 24... Qxe4 {[%clk 0:03:38]} 25. Ra1
{[%clk 0:03:14]} 25... Re8 {[%clk 0:03:33.2]} 26. g3 {[%clk 0:03:02.3]} 26...
Bxc3 {[%clk 0:03:28.7]} 27. Rxa6 {[%clk 0:02:54.4]} 27... Qb1+ {[%clk
0:03:11.8]} 28. Kg2 {[%clk 0:02:50.3]} 28... Qb7+ {[%clk 0:03:06.6]} 29. f3
{[%clk 0:02:38.5]} 29... Qxa6 {[%clk 0:02:56.6]} 30. Qd7 {[%clk 0:02:34.9]}
30... Re2+ {[%clk 0:02:43.1]} 31. Kh3 {[%clk 0:02:32]} 31... Qa8 {[%clk
0:02:28.3]} 32. Qxd6 {[%clk 0:02:21.2]} 32... Qc8+ {[%clk 0:02:21.8]} 33. g4
{[%clk 0:02:18.2]} 33... Bg7 {[%clk 0:02:08.2]} 34. Bf4 {[%clk 0:02:06.4]} 34...
h5 {[%clk 0:01:49]} 35. Bc1 {[%clk 0:01:50.4]} 35... hxg4+ {[%clk 0:01:40.7]}
36. fxg4 {[%clk 0:01:48.3]} 36... Qe8 {[%clk 0:01:20.3]} 37. Qxc5 {[%clk
0:01:39.4]} 37... Bf8 {[%clk 0:01:01.8]} 38. Qc4 {[%clk 0:01:31]} 38... Kg7
{[%clk 0:00:53.8]} 39. Qc3+ {[%clk 0:01:19.9]} 39... Qe5 {[%clk 0:00:45.8]} 40.
Qc6 {[%clk 0:00:48.4]} 40... Qxh2# {[%clk 0:00:41.2]} 0-1

[Event "Live Chess"]
[Site "Chess.com"]
[Date "2023.05.21"]
[Round "-"]
[White "diana21strabt"]
[Black "WilliamofOrange16th"]
[Result "1/2-1/2"]
[WhiteElo "1747"]
[BlackElo "1882"]
[TimeControl "300"]
[EndTime "3:44:03 PDT"]
[Termination "Game drawn by repetition"]

1. e4 {[%clk 0:04:57.6]} 1... d6 {[%clk 0:04:59.2]} 2. Nf3 {[%clk 0:04:56.3]}
2... Nf6 {[%clk 0:04:58.9]} 3. Nc3 {[%clk 0:04:54.9]} 3... e5 {[%clk 0:04:57.2]}
4. d4 {[%clk 0:04:53.9]} 4... Nbd7 {[%clk 0:04:55.7]} 5. dxe5 {[%clk 0:04:52.4]}
5... dxe5 {[%clk 0:04:55.6]} 6. Bb5 {[%clk 0:04:50.8]} 6... c6 {[%clk
0:04:54.1]} 7. Bc4 {[%clk 0:04:49.7]} 7... Be7 {[%clk 0:04:53.7]} 8. O-O {[%clk
0:04:48.3]} 8... O-O {[%clk 0:04:53.3]} 9. Bg5 {[%clk 0:04:46.5]} 9... b5 {[%clk
0:04:51.6]} 10. Bd3 {[%clk 0:04:45.1]} 10... Qc7 {[%clk 0:04:50.6]} 11. Nd2
{[%clk 0:04:40.5]} 11... Nc5 {[%clk 0:04:49.5]} 12. Bxf6 {[%clk 0:04:35]} 12...
Bxf6 {[%clk 0:04:48.8]} 13. a3 {[%clk 0:04:30.8]} 13... Be6 {[%clk 0:04:46.8]}
14. Qf3 {[%clk 0:04:24.4]} 14... Qe7 {[%clk 0:04:43]} 15. Be2 {[%clk 0:04:17.1]}
15... g6 {[%clk 0:04:40.4]} 16. Qg3 {[%clk 0:04:06.3]} 16... Bg7 {[%clk
0:04:38.5]} 17. Bg4 {[%clk 0:04:02.7]} 17... Rfd8 {[%clk 0:04:34.5]} 18. Rad1
{[%clk 0:03:59.7]} 18... Bxg4 {[%clk 0:04:28.4]} 19. Qxg4 {[%clk 0:03:58.4]}
19... Ne6 {[%clk 0:04:27.8]} 20. Nf3 {[%clk 0:03:51.9]} 20... Rxd1 {[%clk
0:04:16.5]} 21. Rxd1 {[%clk 0:03:50.8]} 21... Rd8 {[%clk 0:04:15.7]} 22. Rxd8+
{[%clk 0:03:46.4]} 22... Qxd8 {[%clk 0:04:15.6]} 23. h3 {[%clk 0:03:45.6]} 23...
h5 {[%clk 0:04:08.8]} 24. Qg3 {[%clk 0:03:43.7]} 24... Qd6 {[%clk 0:04:04.5]}
25. Ng5 {[%clk 0:03:33.1]} 25... Nxg5 {[%clk 0:04:00.4]} 26. Qxg5 {[%clk
0:03:31.8]} 26... Qf6 {[%clk 0:03:59.3]} 27. Qxf6 {[%clk 0:03:30.4]} 27... Bxf6
{[%clk 0:03:59.2]} 28. Kf1 {[%clk 0:03:29.2]} 28... Kf8 {[%clk 0:03:56.7]} 29.
Ke2 {[%clk 0:03:28.4]} 29... Ke7 {[%clk 0:03:56.5]} 30. Kd3 {[%clk 0:03:27.6]}
30... Kd6 {[%clk 0:03:56.1]} 31. b4 {[%clk 0:03:25.1]} 31... a6 {[%clk
0:03:54.3]} 32. Ne2 {[%clk 0:03:23.5]} 32... c5 {[%clk 0:03:52.3]} 33. bxc5+
{[%clk 0:03:21.5]} 33... Kxc5 {[%clk 0:03:52.2]} 34. Nc3 {[%clk 0:03:19.7]}
34... Bd8 {[%clk 0:03:49.4]} 35. Nd5 {[%clk 0:03:17.5]} 35... a5 {[%clk
0:03:43.6]} 36. c3 {[%clk 0:03:11.7]} 36... f5 {[%clk 0:03:41.8]} 37. f3 {[%clk
0:03:07.2]} 37... Bh4 {[%clk 0:03:23.8]} 38. Nc7 {[%clk 0:02:58]} 38... Kc6
{[%clk 0:03:07.1]} 39. Ne6 {[%clk 0:02:50.9]} 39... Be7 {[%clk 0:03:01.4]} 40.
exf5 {[%clk 0:02:45.8]} 40... gxf5 {[%clk 0:02:59.9]} 41. Ng7 {[%clk 0:02:42.3]}
41... e4+ {[%clk 0:02:55.5]} 42. fxe4 {[%clk 0:02:39.2]} 42... fxe4+ {[%clk
0:02:55.4]} 43. Kxe4 {[%clk 0:02:37.8]} 43... Bxa3 {[%clk 0:02:54.8]} 44. Nxh5
{[%clk 0:02:36.1]} 44... Bc1 {[%clk 0:02:10.6]} 45. Ng3 {[%clk 0:02:30]} 45...
a4 {[%clk 0:02:09.3]} 46. Ne2 {[%clk 0:02:27.6]} 46... Bd2 {[%clk 0:02:05]} 47.
Kd3 {[%clk 0:02:21.1]} 47... Be1 {[%clk 0:02:04]} 48. Nd4+ {[%clk 0:02:18.7]}
48... Kb6 {[%clk 0:02:00.3]} 49. Nc2 {[%clk 0:02:17.2]} 49... Bg3 {[%clk
0:01:58.4]} 50. c4 {[%clk 0:02:03.5]} 50... Kc5 {[%clk 0:01:50.5]} 51. cxb5
{[%clk 0:02:01.9]} 51... Kxb5 {[%clk 0:01:49.9]} 52. Kc3 {[%clk 0:01:59.4]}
52... Be5+ {[%clk 0:01:47.5]} 53. Kd3 {[%clk 0:01:51.8]} 53... Kc5 {[%clk
0:01:45.8]} 54. g4 {[%clk 0:01:50]} 54... Bf6 {[%clk 0:01:44.1]} 55. Ke4 {[%clk
0:01:42.8]} 55... Kc4 {[%clk 0:01:43.1]} 56. Kf5 {[%clk 0:01:41.3]} 56... Be7
{[%clk 0:01:37.3]} 57. g5 {[%clk 0:01:37.9]} 57... Kc3 {[%clk 0:01:36.5]} 58. g6
{[%clk 0:01:21.7]} 58... Bf8 {[%clk 0:01:35.3]} 59. Na3 {[%clk 0:01:17]} 59...
Kb3 {[%clk 0:01:32.6]} 60. Nb1 {[%clk 0:01:15.1]} 60... Kb2 {[%clk 0:01:31.3]}
61. Nd2 {[%clk 0:01:14.1]} 61... Kc2 {[%clk 0:01:29.7]} 62. Nc4 {[%clk
0:01:11.7]} 62... Kc3 {[%clk 0:01:25.5]} 63. Na3 {[%clk 0:01:07.3]} 63... Bg7
{[%clk 0:01:23.5]} 64. h4 {[%clk 0:01:04.8]} 64... Kb3 {[%clk 0:01:22.7]} 65.
Nb1 {[%clk 0:01:03.6]} 65... Kb2 {[%clk 0:01:22]} 66. Nd2 {[%clk 0:01:00.5]}
66... Kc2 {[%clk 0:01:19.5]} 67. Nc4 {[%clk 0:00:57.1]} 67... Kc3 {[%clk
0:01:12.3]} 68. Na3 {[%clk 0:00:48.8]} 68... Kb3 {[%clk 0:01:08]} 69. Nb1 {[%clk
0:00:46.9]} 69... Kc2 {[%clk 0:01:06.6]} 70. Na3+ {[%clk 0:00:45.2]} 70... Kb3
{[%clk 0:01:05.9]} 1/2-1/2

[Event "Live Chess"]
[Site "Chess.com"]
[Date "2023.05.21"]
[Round "-"]
[White "SmoothBaron"]
[Black "Richardallis"]
[Result "1-0"]
[WhiteElo "2358"]
[BlackElo "1880"]
[TimeControl "300"]
[EndTime "3:44:04 PDT"]
[Termination "SmoothBaron won by resignation"]

1. e4 {[%clk 0:04:56.2]} 1... d5 {[%clk 0:04:58.8]} 2. exd5 {[%clk 0:04:55.1]}
2... Nf6 {[%clk 0:04:58.2]} 3. Nc3 {[%clk 0:04:54.1]} 3... Nxd5 {[%clk
0:04:57.5]} 4. Bc4 {[%clk 0:04:53]} 4... c6 {[%clk 0:04:56.4]} 5. Qf3 {[%clk
0:04:46.5]} 5... e6 {[%clk 0:04:55]} 6. Nge2 {[%clk 0:04:44.7]} 6... Nd7 {[%clk
0:04:53.3]} 7. d4 {[%clk 0:04:41.1]} 7... N7f6 {[%clk 0:04:51.3]} 8. a3 {[%clk
0:04:33.5]} 8... Be7 {[%clk 0:04:48.9]} 9. O-O {[%clk 0:04:31.1]} 9... O-O
{[%clk 0:04:46.4]} 10. Ne4 {[%clk 0:04:27.4]} 10... Nxe4 {[%clk 0:04:44.8]} 11.
Qxe4 {[%clk 0:04:26.2]} 11... Nf6 {[%clk 0:04:44.3]} 12. Qh4 {[%clk 0:04:21.7]}
12... b5 {[%clk 0:04:38.7]} 13. Bd3 {[%clk 0:04:18.8]} 13... h6 {[%clk
0:04:36.6]} 14. Ng3 {[%clk 0:04:01.2]} 14... Nh7 {[%clk 0:04:30.2]} 15. Qe4
{[%clk 0:03:57.9]} 15... Nf6 {[%clk 0:04:28.4]} 16. Qxc6 {[%clk 0:03:45.6]}
16... Bd7 {[%clk 0:04:27.3]} 17. Qf3 {[%clk 0:03:39.9]} 17... Qc7 {[%clk
0:04:25.7]} 18. Bf4 {[%clk 0:03:36.7]} 18... Bd6 {[%clk 0:04:24]} 19. Bxd6
{[%clk 0:03:34.2]} 19... Qxd6 {[%clk 0:04:23.3]} 20. Ne4 {[%clk 0:03:27.1]}
20... Qxd4 {[%clk 0:04:19.5]} 21. Rfd1 {[%clk 0:03:15.8]} 21... Qe5 {[%clk
0:04:10.8]} 22. Nxf6+ {[%clk 0:02:47.1]} 22... Qxf6 {[%clk 0:04:09.3]} 23. Qxf6
{[%clk 0:02:45.4]} 23... gxf6 {[%clk 0:04:08.6]} 24. Be4 {[%clk 0:02:41.7]}
24... Rad8 {[%clk 0:04:07.2]} 25. Rd6 {[%clk 0:02:34.3]} 25... Bc8 {[%clk
0:04:04.2]} 26. Rad1 {[%clk 0:02:32.3]} 26... Rxd6 {[%clk 0:04:02.3]} 27. Rxd6
{[%clk 0:02:32]} 27... f5 {[%clk 0:04:00.8]} 28. Bf3 {[%clk 0:02:30.3]} 28...
Kg7 {[%clk 0:04:00.1]} 29. Kf1 {[%clk 0:02:18.2]} 29... Kf6 {[%clk 0:03:58.1]}
30. Ke2 {[%clk 0:02:17.2]} 30... Ke7 {[%clk 0:03:56.2]} 31. Rd2 {[%clk
0:02:10.3]} 31... a5 {[%clk 0:03:41.3]} 32. Bc6 {[%clk 0:02:07]} 32... Ba6
{[%clk 0:03:39.4]} 33. Rd7+ {[%clk 0:02:01.1]} 33... Kf6 {[%clk 0:03:38]} 34.
Ra7 {[%clk 0:01:57.1]} 34... Bc8 {[%clk 0:03:35.1]} 35. Bxb5 {[%clk 0:01:47.6]}
35... e5 {[%clk 0:03:28.7]} 36. Rxa5 {[%clk 0:01:44.8]} 36... Rd8 {[%clk
0:03:26.8]} 37. Ba6 {[%clk 0:01:38.1]} 37... Be6 {[%clk 0:03:24]} 38. Rc5 {[%clk
0:01:30.4]} 38... Ra8 {[%clk 0:03:19.7]} 39. Rc6 {[%clk 0:01:28]} 39... Rb8
{[%clk 0:03:17.6]} 40. b4 {[%clk 0:01:26.2]} 40... Kg5 {[%clk 0:03:16.3]} 41.
Bc4 {[%clk 0:01:21.7]} 41... Bd7 {[%clk 0:03:14.7]} 42. Rc7 {[%clk 0:01:20.2]}
42... Rd8 {[%clk 0:03:13.1]} 43. b5 {[%clk 0:01:14.7]} 43... e4 {[%clk
0:03:11.6]} 44. b6 {[%clk 0:01:13.1]} 44... f4 {[%clk 0:03:10.5]} 45. b7 {[%clk
0:01:11.1]} 45... Bg4+ {[%clk 0:03:09]} 46. f3 {[%clk 0:01:10]} 46... exf3+
{[%clk 0:03:07.3]} 47. gxf3 {[%clk 0:01:09.2]} 47... Re8+ {[%clk 0:03:06]} 48.
Kf2 {[%clk 0:01:08]} 48... Bf5 {[%clk 0:03:03.4]} 49. Rc5 {[%clk 0:01:03]} 49...
Kf6 {[%clk 0:03:00.7]} 50. Rb5 {[%clk 0:00:56.7]} 50... Rb8 {[%clk 0:02:57]} 51.
a4 {[%clk 0:00:55.3]} 51... Bd7 {[%clk 0:02:55.9]} 52. Rb6+ {[%clk 0:00:54.1]}
52... Ke5 {[%clk 0:02:55.2]} 53. a5 {[%clk 0:00:53.4]} 53... Kd4 {[%clk
0:02:53.8]} 54. Bxf7 {[%clk 0:00:51.8]} 54... Kc5 {[%clk 0:02:51.7]} 55. Bg6
{[%clk 0:00:49.7]} 55... Bc6 {[%clk 0:02:47.7]} 56. Be4 {[%clk 0:00:47.3]} 56...
Bb5 {[%clk 0:02:41.7]} 57. Rxh6 {[%clk 0:00:41.4]} 57... Kb4 {[%clk 0:02:18.3]}
58. a6 {[%clk 0:00:38.6]} 58... Bxa6 {[%clk 0:02:17.7]} 59. Rxa6 {[%clk
0:00:37]} 59... Kc5 {[%clk 0:02:17.2]} 60. Rf6 {[%clk 0:00:35.7]} 60... Kb5
{[%clk 0:02:14.8]} 61. Rxf4 {[%clk 0:00:34.2]} 61... Kb6 {[%clk 0:02:14.3]} 62.
Rf7 {[%clk 0:00:32.5]} 62... Ka7 {[%clk 0:02:13.5]} 63. Rc7 {[%clk 0:00:30.9]}
63... Kb6 {[%clk 0:01:59]} 64. Rc8 {[%clk 0:00:29.5]} 64... Ka7 {[%clk 0:01:58]}
65. Rxb8 {[%clk 0:00:28.1]} 65... Kxb8 {[%clk 0:01:57.6]} 66. h4 {[%clk
0:00:27.5]} 66... Kc7 {[%clk 0:01:55.9]} 67. h5 {[%clk 0:00:26.8]} 67... Kb8
{[%clk 0:01:55.5]} 68. h6 {[%clk 0:00:26.1]} 68... Ka7 {[%clk 0:01:54.4]} 69. h7
{[%clk 0:00:25.2]} 69... Ka6 {[%clk 0:01:53.3]} 70. b8=Q {[%clk 0:00:23.2]}
70... Ka5 {[%clk 0:01:52.3]} 71. h8=Q {[%clk 0:00:20.2]} 1-0

[Event "Live Chess"]
[Site "Chess.com"]
[Date "2023.05.21"]
[Round "-"]
[White "Greenbecker"]
[Black "GMMickeyAdams"]
[Result "0-1"]
[WhiteElo "1650"]
[BlackElo "2794"]
[TimeControl "300"]
[EndTime "3:44:04 PDT"]
[Termination "GMMickeyAdams won by resignation"]

1. e4 {[%clk 0:04:58]} 1... c6 {[%clk 0:04:58.7]} 2. d4 {[%clk 0:04:56.4]} 2...
d5 {[%clk 0:04:58]} 3. exd5 {[%clk 0:04:55]} 3... cxd5 {[%clk 0:04:56.6]} 4. Bd3
{[%clk 0:04:52.7]} 4... Nc6 {[%clk 0:04:53.8]} 5. c3 {[%clk 0:04:51]} 5... Nf6
{[%clk 0:04:52.5]} 6. h3 {[%clk 0:04:49.1]} 6... g6 {[%clk 0:04:50.8]} 7. Nf3
{[%clk 0:04:48.2]} 7... Bf5 {[%clk 0:04:49.9]} 8. Bxf5 {[%clk 0:04:46.1]} 8...
gxf5 {[%clk 0:04:48.8]} 9. Qd3 {[%clk 0:04:43.9]} 9... e6 {[%clk 0:04:47.9]} 10.
O-O {[%clk 0:04:30.1]} 10... Ne4 {[%clk 0:04:44.4]} 11. Nbd2 {[%clk 0:04:27.5]}
11... Rg8 {[%clk 0:04:42]} 12. Qb5 {[%clk 0:04:08.8]} 12... Qd7 {[%clk
0:04:35.8]} 13. Nxe4 {[%clk 0:03:51.4]} 13... fxe4 {[%clk 0:04:33.6]} 14. Nh2
{[%clk 0:03:50.3]} 14... Bd6 {[%clk 0:04:26.1]} 15. Ng4 {[%clk 0:03:42]} 15...
Rg6 {[%clk 0:04:24.1]} 16. Be3 {[%clk 0:03:19.8]} 16... f5 {[%clk 0:04:21.8]}
17. Nh2 {[%clk 0:03:18.3]} 17... f4 {[%clk 0:04:18.9]} 18. Bd2 {[%clk
0:03:14.2]} 18... f3 {[%clk 0:04:17.7]} 19. g4 {[%clk 0:03:09.7]} 19... O-O-O
{[%clk 0:04:12.6]} 20. Rfe1 {[%clk 0:02:49.6]} 20... h5 {[%clk 0:04:10]} 21. Kh1
{[%clk 0:02:43]} 21... Bxh2 {[%clk 0:04:06.1]} 22. Kxh2 {[%clk 0:02:41.4]} 22...
hxg4 {[%clk 0:04:05.7]} 23. Rg1 {[%clk 0:02:37.2]} 23... Rh8 {[%clk 0:04:02.9]}
24. Rh1 {[%clk 0:02:27.4]} 24... Rxh3+ {[%clk 0:03:55.9]} 25. Kg1 {[%clk
0:02:26.3]} 25... Qh7 {[%clk 0:03:37.3]} 0-1

[Event "Live Chess"]
[Site "Chess.com"]
[Date "2023.05.21"]
[Round "-"]
[White "Driftboard"]
[Black "Mugzwang"]
[Result "0-1"]
[WhiteElo "861"]
[BlackElo "1566"]
[TimeControl "300"]
[EndTime "3:44:08 PDT"]
[Termination "Mugzwang won on time"]

1. e4 {[%clk 0:04:59.5]} 1... e6 {[%clk 0:04:57.7]} 2. Nf3 {[%clk 0:04:58.9]}
2... d5 {[%clk 0:04:55.7]} 3. exd5 {[%clk 0:04:56.4]} 3... exd5 {[%clk
0:04:55.2]} 4. Nc3 {[%clk 0:04:52.8]} 4... Nf6 {[%clk 0:04:53.5]} 5. Qe2+ {[%clk
0:04:51.8]} 5... Qe7 {[%clk 0:04:49.4]} 6. Qxe7+ {[%clk 0:04:50]} 6... Bxe7
{[%clk 0:04:48.3]} 7. Be2 {[%clk 0:04:45.4]} 7... O-O {[%clk 0:04:46.4]} 8. d3
{[%clk 0:04:44.1]} 8... c5 {[%clk 0:04:34.5]} 9. Bg5 {[%clk 0:04:41.1]} 9... Be6
{[%clk 0:04:12]} 10. Bxf6 {[%clk 0:04:32.7]} 10... Bxf6 {[%clk 0:04:10.3]} 11.
O-O {[%clk 0:04:27.9]} 11... a6 {[%clk 0:03:48.1]} 12. h3 {[%clk 0:04:25.4]}
12... b5 {[%clk 0:03:45]} 13. Rad1 {[%clk 0:04:17.4]} 13... Nc6 {[%clk
0:03:38.6]} 14. a4 {[%clk 0:04:10.8]} 14... b4 {[%clk 0:03:32.4]} 15. Na2 {[%clk
0:04:09.3]} 15... Bxb2 {[%clk 0:03:22.9]} 16. Rb1 {[%clk 0:03:59.2]} 16... Bf6
{[%clk 0:03:19]} 17. Rfc1 {[%clk 0:03:44.8]} 17... d4 {[%clk 0:03:10.8]} 18. Ne1
{[%clk 0:03:16.4]} 18... Bxa2 {[%clk 0:03:04.2]} 19. Ra1 {[%clk 0:02:51.4]}
19... Bd5 {[%clk 0:03:00.5]} 20. c4 {[%clk 0:02:46.4]} 20... bxc3 {[%clk
0:02:56]} 21. Bf3 {[%clk 0:02:36.3]} 21... Bxf3 {[%clk 0:02:51.4]} 22. Nxf3
{[%clk 0:02:35.1]} 22... Nb4 {[%clk 0:02:39.3]} 23. Ne1 {[%clk 0:02:28.1]} 23...
a5 {[%clk 0:02:34]} 24. g3 {[%clk 0:02:10.2]} 24... Rab8 {[%clk 0:02:15.9]} 25.
Kg2 {[%clk 0:01:47]} 25... h6 {[%clk 0:02:13.9]} 26. Kf3 {[%clk 0:01:45.1]}
26... Rb7 {[%clk 0:02:12.6]} 27. Ke4 {[%clk 0:01:40.8]} 27... Re8+ {[%clk
0:02:04.8]} 28. Kf3 {[%clk 0:01:37.3]} 28... Reb8 {[%clk 0:01:58.6]} 29. h4
{[%clk 0:01:28.5]} 29... Nd5 {[%clk 0:01:56.3]} 30. g4 {[%clk 0:01:26.6]} 30...
Rb2 {[%clk 0:01:41]} 31. Kg3 {[%clk 0:01:20.1]} 31... Re8 {[%clk 0:01:38.1]} 32.
f4 {[%clk 0:01:16.7]} 32... Re3+ {[%clk 0:01:26.8]} 33. Nf3 {[%clk 0:01:07.7]}
33... Rxd3 {[%clk 0:01:24.6]} 34. g5 {[%clk 0:01:05.5]} 34... hxg5 {[%clk
0:01:22.5]} 35. hxg5 {[%clk 0:00:58.8]} 35... Be7 {[%clk 0:01:19.1]} 36. Kg4
{[%clk 0:00:57.7]} 36... g6 {[%clk 0:01:14]} 37. Ne5 {[%clk 0:00:45.3]} 37...
Rg2+ {[%clk 0:01:06.6]} 38. Kh4 {[%clk 0:00:30.7]} 38... Rdd2 {[%clk 0:00:43.2]}
39. Nf3 {[%clk 0:00:21.6]} 39... Rde2 {[%clk 0:00:33.8]} 40. Re1 {[%clk
0:00:17]} 40... Nxf4 {[%clk 0:00:29.9]} 41. Rxe2 {[%clk 0:00:09.9]} 41... Rxe2
{[%clk 0:00:26.3]} 42. Rh1 {[%clk 0:00:08.1]} 42... Re4 {[%clk 0:00:24.5]} 43.
Ne1 {[%clk 0:00:07]} 43... Nd3+ {[%clk 0:00:21.5]} 44. Kh3 {[%clk 0:00:05]}
44... Rxe1 {[%clk 0:00:18.9]} 45. Rxe1 {[%clk 0:00:04.1]} 45... Nxe1 {[%clk
0:00:17.6]} 46. Kg3 {[%clk 0:00:03.7]} 46... c2 {[%clk 0:00:16.9]} 47. Kh3
{[%clk 0:00:00.7]} 47... c1=Q {[%clk 0:00:15.6]} 48. Kh2 {[%clk 0:00:00.5]}
48... Qf4+ {[%clk 0:00:13.7]} 49. Kh3 {[%clk 0:00:00.2]} 49... Qf3+ {[%clk
0:00:11.1]} 0-1

[Event "Live Chess"]
[Site "Chess.com"]
[Date "2023.05.21"]
[Round "-"]
[White "WombatIn_A_Box"]
[Black "JoshMcK"]
[Result "0-1"]
[WhiteElo "570"]
[BlackElo "1512"]
[TimeControl "300"]
[EndTime "3:44:12 PDT"]
[Termination "JoshMcK won by checkmate"]

1. e4 {[%clk 0:04:55.8]} 1... e5 {[%clk 0:04:55.6]} 2. Nc3 {[%clk 0:04:53.5]}
2... Bc5 {[%clk 0:04:52.9]} 3. Nf3 {[%clk 0:04:52]} 3... Nc6 {[%clk 0:04:49.5]}
4. d4 {[%clk 0:04:50]} 4... exd4 {[%clk 0:04:48.1]} 5. Nd5 {[%clk 0:04:41.7]}
5... Nf6 {[%clk 0:04:44.9]} 6. Nxf6+ {[%clk 0:04:40.1]} 6... Qxf6 {[%clk
0:04:44.4]} 7. Bg5 {[%clk 0:04:36.3]} 7... Qg6 {[%clk 0:04:36.5]} 8. c3 {[%clk
0:04:33.3]} 8... Qxe4+ {[%clk 0:04:30.1]} 9. Be2 {[%clk 0:04:24.2]} 9... d3
{[%clk 0:04:22.8]} 10. Qxd3 {[%clk 0:04:21.4]} 10... Qxd3 {[%clk 0:04:20]} 11.
Bxd3 {[%clk 0:04:20.4]} 11... O-O {[%clk 0:04:18.7]} 12. Be3 {[%clk 0:04:15.2]}
12... Bxe3 {[%clk 0:04:16]} 13. fxe3 {[%clk 0:04:15.1]} 13... Re8 {[%clk
0:04:15]} 14. O-O-O {[%clk 0:04:08.8]} 14... Ne5 {[%clk 0:04:13.5]} 15. Nxe5
{[%clk 0:04:07]} 15... Rxe5 {[%clk 0:04:13.4]} 16. Rhe1 {[%clk 0:04:04.8]} 16...
d6 {[%clk 0:04:11.1]} 17. g3 {[%clk 0:04:04]} 17... Bg4 {[%clk 0:04:08.6]} 18.
Rd2 {[%clk 0:04:01.6]} 18... Rae8 {[%clk 0:04:06.7]} 19. e4 {[%clk 0:03:58.1]}
19... Bf3 {[%clk 0:04:02.7]} 20. Rf2 {[%clk 0:03:54.5]} 20... Bxe4 {[%clk
0:04:01]} 21. Bxe4 {[%clk 0:03:53.1]} 21... Rxe4 {[%clk 0:04:00.4]} 22. Rxe4
{[%clk 0:03:51.7]} 22... Rxe4 {[%clk 0:04:00.3]} 23. Rd2 {[%clk 0:03:49.8]}
23... f6 {[%clk 0:03:58.1]} 24. b4 {[%clk 0:03:45.4]} 24... Kf7 {[%clk
0:03:52.5]} 25. Rd4 {[%clk 0:03:42.2]} 25... Rxd4 {[%clk 0:03:50.8]} 26. cxd4
{[%clk 0:03:41.2]} 26... Ke6 {[%clk 0:03:49.9]} 27. Kc2 {[%clk 0:03:40.3]} 27...
Kd5 {[%clk 0:03:48.9]} 28. Kc3 {[%clk 0:03:39.6]} 28... g5 {[%clk 0:03:47.1]}
29. a4 {[%clk 0:03:37]} 29... f5 {[%clk 0:03:45.5]} 30. b5 {[%clk 0:03:33.6]}
30... b6 {[%clk 0:03:44.1]} 31. h4 {[%clk 0:03:26.5]} 31... gxh4 {[%clk
0:03:41.5]} 32. gxh4 {[%clk 0:03:25.9]} 32... Ke4 {[%clk 0:03:40.6]} 33. Kc4
{[%clk 0:03:22.2]} 33... h5 {[%clk 0:03:37.5]} 34. a5 {[%clk 0:03:18.6]} 34...
f4 {[%clk 0:03:35.7]} 35. axb6 {[%clk 0:03:17.2]} 35... axb6 {[%clk 0:03:34.4]}
36. d5 {[%clk 0:03:11.7]} 36... f3 {[%clk 0:03:33.1]} 37. Kb4 {[%clk 0:03:05.7]}
37... f2 {[%clk 0:03:31.9]} 38. Kc3 {[%clk 0:03:02.3]} 38... f1=Q {[%clk
0:03:31.8]} 39. Kb4 {[%clk 0:03:01.2]} 39... Qc1 {[%clk 0:03:26.6]} 40. Kb3
{[%clk 0:02:59.8]} 40... Kd3 {[%clk 0:03:25]} 41. Ka4 {[%clk 0:02:58.9]} 41...
Qb1 {[%clk 0:03:23.6]} 42. Ka3 {[%clk 0:02:57.8]} 42... Kc3 {[%clk 0:03:22.6]}
43. Ka4 {[%clk 0:02:56.2]} 43... Qa1# {[%clk 0:03:22.5]} 0-1